bitfinex-derivatives/quotes_SOLF0:USTF0_20251208
["timestamp","ask_amount","ask_price","bid_price","bid_amount"]
[1765152000974,0.05464832,132.19,132.17,2.54734103]
[1765152001376,3.20464832,132.19,132.17,0.05734103]
[1765152001576,0.05464832,132.19,132.17,2.54734103]
[1765152001779,3.20464832,132.19,132.17,0.05734103]
[1765152002180,3.20464832,132.19,132.11,16.25480729]
[1765152002481,3.15,132.19,132.11,13.76480729]
[1765152002673,3.15,132.19,132.12,13.76480729]
[1765152002981,3.15,132.19,132.13,13.76480729]
[1765152003374,3.40137197,132.17,132.15,0.04878899]
[1765152003577,3.39859377,132.17,132.08,2.59]
[1765152003775,3.35,132.17,132.08,2.59]
[1765152004489,3.35,132.17,132.11,0.05343204]
[1765152004490,3.35,132.13,132.11,0.05343204]
[1765152007185,3.35,132.12,132.03,2.59]
[1765152007776,3.35,132.09,132.01,2.59]
[1765152008276,3.35,132.05,132.04,0.05362478]
[1765152008987,3.40089922,132.06,132.04,0.05362478]
[1765152009181,0.05089922,132.06,132.04,2.64362478]
[1765152010292,0.05089922,132.06,131.99,2.59]
[1765152010293,3.40089922,132.06,131.99,2.59]
[1765152010686,3.40089922,132.06,131.97,108.7114]
[1765152010984,3.35,132.06,131.97,108.7114]
[1765152011180,3.35,132.06,131.98,6.8184]
[1765152011384,3.4081345,132.03,132.01,0.05466193]
[1765152011786,0.0581345,132.03,132.01,2.69466193]
[1765152012281,0.0581345,132.03,132.01,0.05466193]
[1765152012282,3.4081345,132.03,132.01,0.05466193]
[1765152012882,3.4081345,132.03,132.01,0.00466193]
[1765152013287,0.0581345,132.03,132.01,106.04586193]
[1765152013488,0.0581345,132.03,132.02,2.69]
[1765152013692,3.35,132.09,132.03,108.7174]
[1765152013986,3.35,132.09,132.0,108.7387]
[1765152014692,3.35,132.05,132.03,0.04834586]
[1765152014989,3.35,132.05,132.03,0.05649349]
[1765152018894,3.35,132.05,131.99,6.818]
[1765152019788,3.38,132.02,132.01,0.0507441]
[1765152022289,3.38,132.02,131.97,9.5689]
[1765152022799,3.38,132.02,131.97,6.8189]
[1765152023200,3.38,132.02,131.98,0.04920753]
[1765152023402,3.38,132.0,131.98,0.04920753]
[1765152023698,3.43627765,132.01,131.98,0.04920753]
[1765152025198,3.38,132.0,131.92,6.8213]
[1765152026288,3.38,131.96,131.95,0.05660802]
[1765152027198,3.38,131.95,131.88,6.8233]
[1765152027405,3.38,131.95,131.91,2.81]
[1765152028100,0.04983022,131.94,131.92,0.0528133]
[1765152028301,3.42983022,131.94,131.92,0.0528133]
[1765152029607,3.42983022,131.94,131.88,6.8236]
[1765152029803,3.42983022,131.94,131.85,2.81]
[1765152030000,10.2009,131.94,131.86,6.8246]
[1765152030205,3.38,131.93,131.86,2.86]
[1765152030710,3.43541715,131.91,131.88,9.73876505]
[1765152031008,3.43541715,131.91,131.88,6.88110788]
[1765152031710,3.43541715,131.91,131.88,9.74110788]
[1765152031909,3.43541715,131.91,131.88,0.05760788]
[1765152032300,109.5154,131.9,131.8,109.0673]
[1765152032500,3.38,131.87,131.81,6.8271]
[1765152032808,3.38,131.87,131.83,109.1087]
[1765152033007,3.38,131.87,131.84,2.92]
[1765152033313,3.43585136,131.87,131.84,2.97793216]
[1765152033500,3.43585136,131.87,131.84,9.80353216]
[1765152033807,3.43585136,131.87,131.84,0.05793216]
[1765152034908,3.38,131.85,131.78,6.8288]
[1765152035309,3.38,131.83,131.77,151.78208921]
[1765152035811,3.38,131.8,131.79,0.05002968]
[1765152036016,3.43770447,131.81,131.79,0.05002968]
[1765152038015,0.05770447,131.81,131.79,3.02002968]
[1765152038518,0.05770447,131.81,131.8,2.97]
[1765152039218,3.38,131.87,131.81,9.797]
[1765152039516,3.38,131.87,131.78,2.97]
[1765152039718,3.38,131.85,131.78,2.97]
[1765152040217,3.38,131.82,131.8,0.05149665]
[1765152040914,0.05724809,131.83,131.8,3.02149665]
[1765152041922,3.43724809,131.83,131.8,0.05149665]
[1765152043019,3.43724809,131.83,131.8,3.02149665]
[1765152043224,0.05724809,131.83,131.8,3.02149665]
[1765152043606,3.43724809,131.83,131.8,0.05149665]
[1765152044317,3.38,131.89,131.8,3.02149665]
[1765152044519,3.38,131.89,131.82,2.92]
[1765152045220,3.38,131.88,131.82,9.7465]
[1765152045522,0.05288227,131.86,131.84,0.05424032]
[1765152045723,3.43288227,131.86,131.84,0.05424032]
[1765152046020,0.05288227,131.86,131.84,0.05424032]
[1765152046222,0.05288227,131.86,131.84,2.97424032]
[1765152046721,0.05288227,131.86,131.84,0.05424032]
[1765152047320,0.05288227,131.86,131.84,2.97424032]
[1765152047923,0.05288227,131.86,131.84,0.05424032]
[1765152048118,3.18288227,131.86,131.84,0.05424032]
[1765152048420,0.05288227,131.86,131.84,2.98424032]
[1765152050217,3.18288227,131.86,131.84,0.05424032]
[1765152055226,10.00808227,131.86,131.78,9.7586]
[1765152055421,3.13,131.85,131.78,9.7586]
[1765152056028,3.13,131.85,131.79,9.8083]
[1765152056531,0.05515216,131.83,131.81,3.03402044]
[1765152057119,0.05515216,131.83,131.81,0.05402044]
[1765152057325,3.18515216,131.83,131.81,0.05402044]
[1765152057520,0.05515216,131.83,131.81,0.05402044]
[1765152059423,0.05515216,131.83,131.81,3.03402044]
[1765152060229,0.05515216,131.83,131.82,2.98]
[1765152060429,3.37515216,131.83,131.81,6.88122044]
[1765152060730,0.05515216,131.83,131.81,3.03402044]
[1765152060936,0.05515216,131.83,131.81,0.05402044]
[1765152061135,3.37515216,131.83,131.81,0.05402044]
[1765152062725,3.37515216,131.83,131.75,2.98]
[1765152062928,3.32,131.81,131.72,2.98]
[1765152063123,3.32,131.79,131.72,2.98]
[1765152063533,3.32,131.78,131.72,6.8318]
[1765152063731,0.05493348,131.76,131.74,0.04803599]
[1765152064037,3.37493348,131.76,131.74,0.04803599]
[1765152065146,3.37493348,131.76,131.7,6.833]
[1765152065147,3.37493348,131.76,131.68,116.1185]
[1765152065431,3.37493348,131.76,131.69,3.03]
[1765152065432,3.32,131.76,131.69,3.03]
[1765152065633,3.32,131.74,131.66,9.865]
[1765152065937,3.32,131.74,131.66,109.3548]
[1765152066238,3.37803781,131.71,131.69,0.02536022]
[1765152066838,0.05803781,131.71,131.69,3.05536022]
[1765152067136,0.05803781,131.71,131.69,0.02536022]
[1765152067537,0.05803781,131.71,131.69,3.05536022]
[1765152067932,0.05803781,131.71,131.69,109.35656022]
[1765152068134,0.05803781,131.71,131.7,3.03]
[1765152069336,3.32,131.77,131.7,9.8628]
[1765152069530,3.32,131.77,131.71,3.03]
[1765152070442,3.37113721,131.75,131.68,3.03]
[1765152070634,5.8434764,131.74,131.68,3.03]
[1765152070841,3.32,131.73,131.68,3.03]
[1765152071442,3.37500345,131.72,131.69,0.03464074]
[1765152073539,3.32,131.7,131.62,3.07]
[1765152073735,3.32,131.68,131.62,3.07]
[1765152074039,3.32,131.68,131.64,3.1]
[1765152074637,0.04876623,131.67,131.64,3.1]
[1765152075538,0.04876623,131.67,131.65,3.1]
[1765152076339,0.04876623,131.67,131.65,6.8355]
[1765152076646,0.04876623,131.67,131.63,3.1]
[1765152077141,0.04876623,131.67,131.65,3.1]
[1765152077642,0.04876623,131.67,131.65,9.9355]
[1765152078743,0.04876623,131.67,131.65,3.1]
[1765152079241,0.04876623,131.67,131.63,9.9464]
[1765152079440,0.04876623,131.67,131.64,9.9459]
[1765152079644,0.04876623,131.67,131.65,3.11]
[1765152080154,3.17876623,131.67,131.62,9.9471]
[1765152080340,3.17876623,131.67,131.63,3.11]
[1765152081743,3.17876623,131.67,131.62,6.8371]
[1765152082045,3.17876623,131.67,131.62,9.9471]
[1765152082632,3.17876623,131.67,131.6,9.9482]
[1765152082837,3.18215587,131.65,131.61,3.11]
[1765152083037,0.05215587,131.65,131.64,3.11]
[1765152083451,3.18215587,131.65,131.61,3.11]
[1765152083648,0.05215587,131.65,131.62,3.11]
[1765152084645,3.18215587,131.65,131.59,9.9485]
[1765152084948,3.18215587,131.65,131.59,3.11]
[1765152085544,3.18215587,131.65,131.6,9.9481]
[1765152086638,3.18215587,131.65,131.61,3.11]
[1765152089254,0.05215587,131.65,131.64,3.11]
[1765152090051,0.05215587,131.65,131.63,9.9466]
[1765152090253,0.05215587,131.65,131.64,3.11]
[1765152092354,0.05215587,131.65,131.61,9.9476]
[1765152092646,0.05215587,131.65,131.62,3.11]
[1765152093451,3.18215587,131.65,131.62,3.11]
[1765152094850,0.05215587,131.65,131.62,3.11]
[1765152096448,0.05215587,131.65,131.63,6.8366]
[1765152096751,0.05215587,131.65,131.63,9.9466]
[1765152097251,0.05215587,131.65,131.63,3.11]
[1765152097440,3.18215587,131.65,131.61,9.9474]
[1765152097857,0.05215587,131.65,131.63,3.11]
[1765152098056,3.18215587,131.65,131.6,3.11]
[1765152098352,3.18215587,131.65,131.58,3.11]
[1765152098542,0.0483935,131.63,131.6,3.11]
[1765152098742,0.05447045,131.63,131.6,3.11]
[1765152099155,0.05447045,131.63,131.59,6.8387]
[1765152099156,0.05447045,131.63,131.62,3.11]
[1765152099553,3.13,131.69,131.62,3.11]
[1765152100559,0.05759979,131.67,131.64,0.05447045]
[1765152101058,3.18759979,131.67,131.64,3.16447045]
[1765152102853,3.18759979,131.67,131.64,0.05447045]
[1765152104046,3.13,131.66,131.64,0.05447045]
[1765152104452,3.18759979,131.67,131.64,3.16447045]
[1765152106057,0.05759979,131.67,131.64,3.16447045]
[1765152107163,0.05759979,131.67,131.64,10.00047045]
[1765152107369,0.05759979,131.67,131.65,3.11]
[1765152108563,0.05759979,131.67,131.65,9.9456]
[1765152108861,0.05759979,131.67,131.66,3.12]
[1765152110467,5.89929625,131.72,131.67,3.06]
[1765152110660,75.3019,131.73,131.67,3.06]
[1765152110861,5.89915404,131.72,131.67,3.06]
[1765152111159,75.3008,131.75,131.69,3.06]
[1765152111358,8.93449597,131.74,131.69,3.06]
[1765152111563,0.05664913,131.73,131.71,0.05042798]
[1765152112062,0.05664913,131.73,131.71,3.11042798]
[1765152112861,3.14664913,131.73,131.71,0.05042798]
[1765152113061,0.05664913,131.73,131.71,0.05042798]
[1765152113964,3.14664913,131.73,131.71,0.05042798]
[1765152115763,3.09,131.8,131.72,3.0]
[1765152116355,3.09,131.77,131.69,3.0]
[1765152116568,3.09,131.76,131.69,3.0]
[1765152116768,3.14741218,131.74,131.71,0.05587441]
[1765152120768,3.14741218,131.74,131.71,3.05587441]
[1765152121166,3.14741218,131.74,131.71,0.05587441]
[1765152121668,3.11,131.73,131.71,0.05587441]
[1765152122673,3.11,131.72,131.65,3.0]
[1765152122874,3.11,131.72,131.62,3.06]
[1765152123072,3.11,131.72,131.63,6.8365]
[1765152123073,3.11,131.68,131.63,6.8365]
[1765152123260,3.11,131.68,131.63,9.8965]
[1765152123768,3.16230843,131.67,131.64,0.05126513]
[1765152124868,0.05230843,131.67,131.64,3.11126513]
[1765152127870,3.16230843,131.67,131.64,0.05126513]
[1765152129268,3.11,131.66,131.64,0.05126513]
[1765152130866,0.05230843,131.67,131.64,3.11126513]
[1765152131569,0.00230843,131.67,131.64,3.11126513]
[1765152132677,0.00230843,131.67,131.66,3.01]
[1765152134676,0.00230843,131.67,131.65,3.01]
[1765152135879,0.00230843,131.67,131.66,3.01]
[1765152137080,0.00230843,131.67,131.64,3.06126513]
[1765152138587,0.00230843,131.67,131.65,3.01]
[1765152139378,0.00230843,131.67,131.64,3.06126513]
[1765152141189,0.00230843,131.67,131.64,9.89726513]
[1765152141793,0.00230843,131.67,131.65,3.01]
[1765152145287,0.00230843,131.67,131.65,9.8455]
[1765152145487,0.00230843,131.67,131.66,3.01]
[1765152153896,0.00230843,131.67,131.66,4.53]
[1765152154794,3.31,131.78,131.71,106.2787]
[1765152155095,3.31,131.78,131.72,3.01]
[1765152155889,0.05017946,131.76,131.74,3.06522964]
[1765152156495,0.05017946,131.76,131.74,9.89612964]
[1765152158798,3.36017946,131.76,131.74,6.88612964]
[1765152159387,0.05017946,131.76,131.74,9.89612964]
[1765152160696,0.05017946,131.76,131.74,6.88612964]
[1765152160892,0.05017946,131.76,131.74,9.89612964]
[1765152161099,0.05017946,131.76,131.75,3.01]
[1765152163794,0.05017946,131.76,131.74,9.89612964]
[1765152164204,3.36017946,131.76,131.74,6.88612964]
[1765152164390,0.05017946,131.76,131.74,0.05522964]
[1765152164595,3.36017946,131.76,131.74,0.05522964]
[1765152165407,0.05017946,131.76,131.74,0.05522964]
[1765152165598,3.36017946,131.76,131.74,0.05522964]
[1765152169304,3.36017946,131.76,131.74,3.05522964]
[1765152169503,0.05017946,131.76,131.74,9.88592964]
[1765152171500,3.37017946,131.76,131.74,9.88592964]
[1765152171707,3.37017946,131.76,131.74,0.05522964]
[1765152172898,3.37017946,131.76,131.74,3.05522964]
[1765152173099,3.37017946,131.76,131.74,0.05522964]
[1765152173501,3.37017946,131.76,131.74,3.05522964]
[1765152173810,0.05017946,131.76,131.74,3.05522964]
[1765152175713,0.05017946,131.76,131.74,9.88602964]
[1765152177712,0.05017946,131.76,131.75,3.0]
[1765152180820,3.32,131.84,131.78,2.95]
[1765152181219,3.32,131.88,131.79,2.95]
[1765152181716,3.32,131.86,131.82,2.95]
[1765152182117,0.05686572,131.85,131.83,3.00828476]
[1765152182820,3.37686572,131.85,131.83,0.05828476]
[1765152183221,3.32,131.84,131.78,2.95]
[1765152183915,3.32,131.84,131.77,6.8292]
[1765152184120,3.4,131.81,131.79,0.0581234]
[1765152185713,3.4,131.8,131.73,6.8313]
[1765152186821,0.05839732,131.78,131.75,3.06435844]
[1765152187414,0.05839732,131.78,131.77,3.01]
[1765152187909,10.2251,131.86,131.79,3.01]
[1765152188114,3.4,131.86,131.8,3.01]
[1765152189015,0.05517328,131.84,131.82,0.05799457]
[1765152189219,3.45517328,131.84,131.82,0.05799457]
[1765152191517,3.45517328,131.84,131.77,6.8293]
[1765152191920,3.4,131.83,131.79,3.06]
[1765152192614,0.05563982,131.82,131.8,0.04955441]
[1765152193814,3.45563982,131.82,131.8,0.04955441]
[1765152194208,0.05563982,131.82,131.8,3.10955441]
[1765152194407,3.4,131.89,131.81,3.01]
[1765152194814,3.4,131.89,131.84,9.8358]
[1765152195417,3.45090535,131.88,131.85,0.05631249]
[1765152202734,3.45090535,131.88,131.79,3.01]
[1765152202918,3.4,131.88,131.8,3.07]
[1765152203117,3.4,131.88,131.81,3.07]
[1765152203415,3.4,131.88,131.83,9.8962]
[1765152203623,3.4,131.88,131.84,3.07]
[1765152203817,3.4,131.88,131.81,106.2016]
[1765152203818,0.05719133,131.87,131.85,3.12766624]
[1765152204018,0.05719133,131.87,131.85,9.95266624]
[1765152205324,0.05719133,131.87,131.86,3.07]
[1765152207521,3.24,131.94,131.88,3.01]
[1765152208131,3.24,131.95,131.91,3.01]
[1765152208521,0.0532044,131.94,131.92,0.05770518]
[1765152209526,3.2932044,131.94,131.92,0.05770518]
[1765152210258,3.2932044,131.94,131.87,6.824]
[1765152210523,10.0625,131.91,131.85,6.8251]
[1765152210726,3.24,131.9,131.85,6.8251]
[1765152211224,3.24,131.9,131.86,0.05237836]
[1765152211427,3.24,131.88,131.86,0.05237836]
[1765152211822,3.24,131.88,131.79,8.58607694]
[1765152211823,3.24,131.85,131.81,6.8271]
[1765152212126,3.24,131.85,131.79,8.58607694]
[1765152212423,3.24,131.85,131.8,9.8975]
[1765152212624,3.24,131.83,131.77,3.07]
[1765152213031,3.29368093,131.81,131.79,0.04576256]
[1765152213230,3.29259629,131.81,131.79,0.04576256]
[1765152214329,3.24,131.8,131.79,0.04576256]
[1765152215132,3.24,131.8,131.71,3.07]
[1765152215334,3.24,131.79,131.71,3.07]
[1765152215535,3.24,131.78,131.71,3.07]
[1765152215829,3.24,131.78,131.7,72.0929]
[1765152216130,3.24,131.78,131.68,106.3045]
[1765152216131,3.24,131.74,131.73,0.04576256]
[1765152216433,0.0500968,131.75,131.73,0.04576256]
[1765152216631,3.2900968,131.75,131.73,0.04576256]
[1765152220040,3.2900968,131.75,131.67,3.07]
[1765152220339,3.24,131.75,131.67,9.9045]
[1765152220540,3.24,131.74,131.65,109.4515]
[1765152220835,3.24,131.74,131.66,109.4448]
[1765152221026,0.05027397,131.71,131.69,3.12]
[1765152221225,0.05027397,131.71,131.68,106.3091]
[1765152221226,68.54,131.79,131.72,3.12]
[1765152221433,68.54,131.79,131.73,116.2206]
[1765152221637,65.3,131.79,131.75,3.12]
[1765152221836,65.3,131.79,131.72,106.275]
[1765152221837,3.24,131.78,131.72,3.12]
[1765152222233,0.04934512,131.76,131.72,3.12]
[1765152223037,0.04934512,131.76,131.72,9.9519]
[1765152223338,0.04934512,131.76,131.73,3.12]
[1765152224035,0.04934512,131.76,131.75,3.12]
[1765152224435,0.04934512,131.76,131.74,9.951]
[1765152226139,0.04934512,131.76,131.75,3.12]
[1765152226531,3.24,131.82,131.76,3.12]
[1765152227136,3.24,131.82,131.77,9.9492]
[1765152227335,3.24,131.82,131.78,3.12]
[1765152227536,3.28839327,131.81,131.79,0.04830484]
[1765152228639,0.04839327,131.81,131.79,0.04830484]
[1765152228846,0.04839327,131.81,131.79,3.16830484]
[1765152229446,3.34839327,131.81,131.79,0.04830484]
[1765152232142,0.04839327,131.81,131.79,0.04830484]
[1765152232343,3.34839327,131.81,131.79,0.04830484]
[1765152238152,3.3,131.8,131.71,3.16]
[1765152238357,3.3,131.78,131.7,5.51607694]
[1765152238543,3.3,131.78,131.71,3.16]
[1765152238944,3.3,131.78,131.73,9.9914]
[1765152239150,6.8287,131.79,131.73,6.8314]
[1765152239151,3.3,131.76,131.73,6.8314]
[1765152239343,3.3,131.76,131.73,9.9914]
[1765152239649,3.35730668,131.77,131.73,9.9914]
[1765152240456,0.05730668,131.77,131.74,3.16]
[1765152240750,0.05730668,131.77,131.75,3.16]
[1765152241752,0.05730668,131.77,131.76,3.16]
[1765152246060,0.05730668,131.77,131.76,8.67607694]
[1765152246358,3.27,131.84,131.78,3.1]
[1765152246553,72.205,131.86,131.78,3.1]
[1765152246554,65.38,131.86,131.8,3.1]
[1765152246755,3.27,131.87,131.82,9.9266]
[1765152247156,3.27,131.87,131.83,0.04846054]
[1765152247364,0.04832644,131.86,131.83,3.14846054]
[1765152247658,0.04832644,131.86,131.85,3.1]
[1765152250772,0.04832644,131.86,131.85,8.61607694]
[1765152250969,3.27,131.92,131.87,6.8242]
[1765152251163,3.27,131.92,131.87,9.9242]
[1765152251869,3.32003328,131.91,131.88,0.05025732]
[1765152252064,0.05003328,131.91,131.88,3.15025732]
[1765152252267,0.05003328,131.91,131.89,3.1]
[1765152252768,3.27,131.97,131.91,3.05]
[1765152253070,68.57,132.0,131.92,3.05]
[1765152253267,68.57,132.0,131.93,9.8709]
[1765152253771,0.05681495,131.98,131.95,3.10817397]
[1765152254362,0.05681495,131.98,131.96,3.05]
[1765152255057,0.05681495,131.98,131.97,6.8191]
[1765152255256,0.05681495,131.98,131.97,9.8691]
[1765152257966,0.05681495,131.98,131.95,0.05817397]
[1765152258170,0.05681495,131.98,131.95,3.10817397]
[1765152258866,3.46681495,131.98,131.95,3.10817397]
[1765152259073,0.05681495,131.98,131.95,3.10817397]
[1765152261667,0.05681495,131.98,131.95,109.20007397]
[1765152261975,0.05681495,131.98,131.96,9.8692]
[1765152262474,0.05681495,131.98,131.97,3.05]
[1765152264878,0.05681495,131.98,131.95,3.10817397]
[1765152265171,3.46681495,131.98,131.95,0.05817397]
[1765152265378,0.05681495,131.98,131.95,3.10817397]
[1765152265870,0.05681495,131.98,131.95,8.62425091]
[1765152266067,0.05681495,131.98,131.95,12.39415091]
[1765152266263,3.46681495,131.98,131.95,0.05817397]
[1765152269268,109.53631495,131.98,131.95,0.05817397]
[1765152269470,3.41,131.97,131.95,0.05817397]
[1765152269867,3.41,131.96,131.95,0.05817397]
[1765152270679,0.05681495,131.98,131.95,0.05817397]
[1765152270680,3.46681495,131.98,131.95,0.05817397]
[1765152272778,10.28581495,131.98,131.95,0.05817397]
[1765152272979,3.41,131.97,131.95,0.05817397]
[1765152273679,10.2295,131.97,131.95,0.05817397]
[1765152273977,3.41,131.96,131.89,3.05]
[1765152274286,3.41,131.96,131.89,9.873]
[1765152274481,3.41,131.96,131.9,3.11]
[1765152274782,0.05071405,131.94,131.93,3.11]
[1765152280986,0.05071405,131.94,131.92,6.86932152]
[1765152281177,0.05071405,131.94,131.92,9.97932152]
[1765152281381,0.05071405,131.94,131.93,3.11]
[1765152284291,75.4874,132.01,131.95,9.87]
[1765152284888,3.41,132.0,131.95,9.87]
[1765152285190,3.41,132.0,131.96,3.10060042]
[1765152285384,3.4673912,131.99,131.96,0.05060042]
[1765152286187,3.4673912,131.99,131.96,3.10060042]
[1765152286388,0.0573912,131.99,131.97,3.05]
[1765152286593,0.0573912,131.99,131.96,6.87000042]
[1765152286594,3.4673912,131.99,131.96,0.05060042]
[1765152288492,10.2855912,131.99,131.96,0.05060042]
[1765152288799,3.31,131.98,131.96,0.05060042]
[1765152289997,0.0573912,131.99,131.96,3.11060042]
[1765152290604,3.3673912,131.99,131.96,3.11060042]
[1765152290997,3.3673912,131.99,131.96,9.93010042]
[1765152291200,0.0573912,131.99,131.97,3.06]
[1765152291800,0.0573912,131.99,131.97,9.879]
[1765152294318,0.0573912,131.99,131.98,3.06]
[1765152294520,3.31,132.05,131.99,3.0]
[1765152295415,3.31,132.03,131.99,3.0]
[1765152295616,3.31,132.03,132.02,0.05123621]
[1765152295819,0.05661018,132.04,132.02,3.05123621]
[1765152297117,3.36661018,132.04,132.02,0.05123621]
[1765152299409,3.36661018,132.04,131.96,3.0]
[1765152299615,3.31,132.03,131.96,3.0]
[1765152300118,3.31,132.01,131.96,3.0]
[1765152300516,3.36692549,132.0,131.97,0.0576865]
[1765152301914,10.18482549,132.0,131.97,0.0576865]
[1765152302219,3.31,131.99,131.97,0.0576865]
[1765152302517,6.87482549,132.0,131.97,0.0576865]
[1765152302518,3.36692549,132.0,131.97,3.0576865]
[1765152302821,3.36692549,132.0,131.97,0.0576865]
[1765152303714,3.09,131.99,131.97,0.0576865]
[1765152304106,0.05692549,132.0,131.97,3.0576865]
[1765152305513,0.05692549,132.0,131.98,9.8184]
[1765152307317,0.05692549,132.0,131.98,6.8184]
[1765152307920,0.05692549,132.0,131.97,3.0576865]
[1765152308122,3.14692549,132.0,131.97,0.0576865]
[1765152308710,0.05692549,132.0,131.98,3.0]
[1765152309127,3.14692549,132.0,131.97,0.0576865]
[1765152309608,0.05692549,132.0,131.97,3.0576865]
[1765152310020,0.05692549,132.0,131.97,9.8766865]
[1765152310415,3.14692549,132.0,131.97,9.8766865]
[1765152310725,3.14692549,132.0,131.97,0.0576865]
[1765152312017,3.14692549,132.0,131.93,6.8208]
[1765152312919,3.14692549,132.0,131.95,0.0508398]
[1765152313719,3.09,131.98,131.95,0.0508398]
[1765152314712,3.09,131.97,131.95,0.0508398]
[1765152314919,3.14476617,131.97,131.95,0.0508398]
[1765152320836,0.05476617,131.97,131.95,9.9308398]
[1765152322131,0.05476617,131.97,131.96,3.06]
[1765152322332,0.05476617,131.97,131.96,6.2734498]
[1765152322723,3.46476617,131.97,131.95,0.0508398]
[1765152325730,0.05476617,131.97,131.95,9.9309398]
[1765152326032,0.05476617,131.97,131.96,3.06]
[1765152327638,3.41,132.07,132.0,3.06]
[1765152327836,3.41,132.07,132.03,3.06]
[1765152328242,3.41,132.07,132.03,9.8758]
[1765152328643,0.05544037,132.06,132.04,0.04796338]
[1765152330339,3.46544037,132.06,132.04,0.04796338]
[1765152332442,10.28024037,132.06,132.04,0.04796338]
[1765152332637,3.41,132.05,132.04,0.04796338]
[1765152332838,3.41,132.05,131.98,6.8183]
[1765152333338,3.41,132.03,131.97,5.50333842]
[1765152333847,3.46703461,132.01,131.99,0.05610296]
[1765152336548,3.41,132.0,131.94,9.8804]
[1765152337242,3.41,131.99,131.94,3.06]
[1765152337443,0.05193472,131.98,131.95,0.0480924]
[1765152337645,3.41,131.97,131.95,0.0480924]
[1765152347560,10.2293,131.97,131.95,0.0480924]
[1765152347760,3.21,131.96,131.89,6.8229]
[1765152348062,3.21,131.92,131.85,114.83213842]
[1765152348264,68.39,131.95,131.89,9.9828]
[1765152348558,3.21,131.95,131.89,3.16]
[1765152348758,0.0507652,131.93,131.89,3.16]
[1765152349564,0.0507652,131.93,131.91,9.9821]
[1765152350260,0.0507652,131.93,131.92,3.16]
[1765152350658,3.21,131.98,131.94,3.16]
[1765152350865,3.21,131.98,131.95,2.05632043]
[1765152351460,173.30402043,132.01,131.95,2.05632043]
[1765152351461,3.21,132.01,131.97,2.05632043]
[1765152351665,2.05632043,132.02,131.98,0.05559929]
[1765152351666,3.26064651,132.0,131.98,0.05559929]
[1765152358664,0.05064651,132.0,131.99,5.21632043]
[1765152360772,0.05064651,132.0,131.99,2.05632043]
[1765152361066,0.05064651,132.0,131.99,5.21632043]
[1765152361462,3.32064651,132.0,131.99,2.05632043]
[1765152361663,3.32064651,132.0,131.98,0.05559929]
[1765152362568,3.27,131.99,131.93,2.05632043]
[1765152362866,3.27,131.97,131.91,2.05632043]
[1765152363456,0.05194794,131.95,131.91,2.05632043]
[1765152363652,3.32194794,131.95,131.91,2.05632043]
[1765152363853,3.32194794,131.95,131.91,5.27632043]
[1765152364052,3.32194794,131.95,131.92,3.22]
[1765152364264,0.05194794,131.95,131.92,3.22]
[1765152364471,0.05194794,131.95,131.93,2.05632043]
[1765152364671,3.32194794,131.95,131.92,3.22]
[1765152367266,3.32194794,131.95,131.91,10.0421]
[1765152367572,3.32194794,131.95,131.91,3.22]
[1765152372473,3.32194794,131.95,131.92,3.22]
[1765152372676,0.05194794,131.95,131.92,3.22]
[1765152373376,3.32194794,131.95,131.92,3.22]
[1765152374377,3.32194794,131.95,131.92,10.0414]
[1765152374577,0.05194794,131.95,131.93,3.22]
[1765152375070,10.0874,132.01,131.94,3.22]
[1765152375265,3.27,132.01,131.95,3.22]
[1765152376170,0.05574739,131.99,131.97,3.26905289]
[1765152376671,0.05574739,131.99,131.98,3.22]
[1765152377478,0.05574739,131.99,131.97,3.26905289]
[1765152377975,0.05574739,131.99,131.97,0.04905289]
[1765152379179,0.05574739,131.99,131.97,3.25905289]
[1765152380176,3.32574739,131.99,131.97,0.04905289]
[1765152383082,10.14414739,131.99,131.97,0.04905289]